Cogmind - Beta 14 @@@ ROGUE MODE // 2024.08.12 @ 03:47:00 Player: Rosa Result: Destroyed by G-47 Trooper with Particle Gun Performance ------------- Evolutions (2) 1000 Regions Visited (3) 600 Robots Destroyed (28) 140 Value Destroyed (756) 756 Prototype IDs (5) 100 Alien Tech Used (0) 0 Bonus (0) 0 TOTAL SCORE: 2596 Bonus ------- None Cogmind --------- Core Integrity 0/550 Matter 450/450 Energy 100/100 System Corruption 0% Temperature Cool (9) Movement Core (1000) Ox19 Location -8/Materials Parts ------- > --- POWER (2) -------- (None) > --- PROPULSION (3) --- (None) > --- UTILITY (3) ------ Medium Storage Unit High-capacity Storage Unit Large Matter Pod > --- WEAPON (3) ------- Heavy Mace Heavy Mace > --- INVENTORY (20) --- Light Nuclear Core Wheel Large Storage Unit Hacking Suite Shock Rifle Heavy EM Shotgun Beam Rifle Particle Gun Light Assault Rifle Improved Light Cannon Improved Light Cannon Improved Datajack Heavy Mace Heavy Mace Peak State ------------ > --- POWER ------------ Light Nuclear Core Light Nuclear Core > --- PROPULSION ------- Light Treads > --- UTILITY ---------- Medium Storage Unit High-capacity Storage Unit Large Matter Pod > --- WEAPON ----------- Minigun Heavy Mace Heavy Mace > --- INVENTORY -------- Light Nuclear Core Wheel Large Storage Unit Hacking Suite Shock Rifle Heavy EM Shotgun Beam Rifle Particle Gun Light Assault Rifle Improved Light Cannon Improved Light Cannon Plasma Cutter Heavy Mace Heavy Mace [Rating: 22] Favorites ----------- Power Light Nuclear Core Engine Cooled Ion Engine Power Core Light Nuclear Core Propulsion Light Treads Treads Light Treads Leg Improved Aluminum Leg Wheel Compact Wheel Utility Large Matter Pod Storage Large Matter Pod Protection Light Armor Plating Weapon Mining Claw Energy Gun Heavy EM Pulse Gun Ballistic Gun Minigun Impact Weapon Heavy Mace Slashing Weapon Mining Claw Special Melee Weapon Datajack Build | -11 -10 -9 -8 ------- Run | Yrd Mat Mat Mat Slots Evolved 4 | . . 2 2 Power 1 | . . . 1 Propulsion 1 | . . . 1 Utility 1 | . . 1 . Weapon 1 | . . 1 . Parts Attached 40 | 7 6 15 12 Power 7 | 1 1 1 4 Engine 4 | 1 1 1 1 Core 3 | . . . 3 Reactor . | . . . . Propulsion 12 | 2 2 6 2 Treads 6 | . . 4 2 Leg 2 | . . 2 . Wheel 4 | 2 2 . . Hover . | . . . . Flight . | . . . . Utility 8 | 1 2 2 3 Device . | . . . . Storage 5 | 1 2 . 2 Processor . | . . . . Hackware . | . . . . Protection 3 | . . 2 1 Artifact . | . . . . Weapon 13 | 3 1 6 3 Energy Gun 5 | 1 1 3 . Energy Cannon . | . . . . Ballistic Gun 3 | 2 . . 1 Ballistic Cannon . | . . . . Launcher . | . . . . Special Weapon . | . . . . Impact Weapon 2 | . . . 2 Slashing Weapon 2 | . . 2 . Piercing Weapon . | . . . . Special Melee Weapon 1 | . . 1 . Unidentified Prototypes 1 | . . 1 . Corrupted Parts 1 | . . 1 . System Corruption 1 | . . 1 . Parts Lost 15 | . 5 1 9 Power 3 | . 1 . 2 Propulsion 5 | . 1 . 4 Utility 2 | . . . 2 Weapon 5 | . 3 1 1 Highest Loss Streak 3 | . 3 1 3 To Critical Strikes . | . . . . Average Slot Usage (%) 87 | . 92 94 79 Engine 7 | . 11 11 1 Core 4 | . . . 11 Treads 10 | . . 14 14 Leg 1 | . . 4 . Wheel 8 | . 28 2 . Storage 22 | . 23 22 21 Protection 3 | . . 6 3 Energy Gun 4 | . 3 9 . Ballistic Gun 9 | . 24 . 7 Impact Weapon 3 | . . . 9 Slashing Weapon 10 | . . 21 8 Peak Build Rating 22 | 6 7 13 22 Average Rating 12 | 4 6 11 17 On Entrance 5 | . 6 5 12 Naked Turns . | . . . . Heaviest Build 72 | 14 31 41 72 Greatest Support 60 | 32 32 40 60 Greatest Overweight (x) 19 | . 1 2 19 Average Overweight (x) . | . . . 1 Largest Inventory Capacity 20 | 8 15 15 20 Average Capacity 15 | 6 14 15 17 Most Carried 15 | 2 4 11 15 Average Carried 7 | 1 2 5 12 Final Capacity 20 | 8 15 15 20 Final Carried 14 | 2 3 11 14 Class Distribution -------------------- 77% | Mutant 22% | Scavenger-Mutant Dominant Class ---------------- Mutant | -10/Materials Mutant | -9/Materials Mutant | -8/Materials Resources | -11 -10 -9 -8 ----------- Run | Yrd Mat Mat Mat Matter Collected 680 | 220 210 155 95 Remotely . | . . . . Salvage Created 1151 | . 321 495 335 Parts 64 | . 24 29 11 Haulers Intercepted 3 | . . 2 1 Recyclers Shooed . | . . . . Parts Field Recycled . | . . . . Retrieved Matter . | . . . . Parts Self-Destructed . | . . . . Prevented . | . . . . Kills | -11 -10 -9 -8 ------- Run | Yrd Mat Mat Mat Combat Hostiles Destroyed 16 | . 5 6 5 Melee 9 | . . 5 4 Guns 6 | . 5 1 . Classes Destroyed 10 | . 4 3 3 Worker 2 | . 2 . . Builder 1 | . . . 1 Tunneler 1 | . . . 1 Hauler 3 | . . 2 1 Recycler 1 | . . 1 . Operator 1 | . 1 . . Watcher 3 | . 2 . 1 Grunt 12 | . 5 4 3 Sentry 2 | . . 2 . Hunter 2 | . . . 2 Best Kill Streak 8 | . 8 3 3 Combat Bots Only 5 | . 5 2 2 Max Kills in Single Turn 1 | . 1 1 1 Gunslinging . | . . . . Exploded . | . . . . Melee 1 | . . 1 1 Uniques/NPCs Destroyed . | . . . . Combat | -11 -10 -9 -8 -------- Run | Yrd Mat Mat Mat Hostile Shots Fired 238 | . 51 57 130 Missed 52 | . 12 13 27 Damage Taken 2527 | . 417 522 1588 Core 701 | . 54 89 558 Absorbed by Shields . | . . . . Core Remaining (%) 85 | 100 78 77 . Volleys Fired 41 | . 32 4 5 Largest 2 | . 2 1 1 Hottest 60 | . 60 45 25 Shots Fired 70 | . 61 4 5 Gun 70 | . 61 4 5 Cannon . | . . . . Launcher . | . . . . Special . | . . . . Kinetic 60 | . 55 . 5 Thermal . | . . . . Explosive . | . . . . Electromagnetic 10 | . 6 4 . Robot Hit Streak 7 | . 7 7 3 Robot Miss Streak 11 | . 11 . 2 Penetration Max . | . . . . Secondary Targets 2 | . 2 . . Max Gunslinging Chain 1 | . 1 . . Shots Hit Robots 80 | . 35 18 27 Core Hits 36 | . 17 10 9 Critical Kills . | . . . . Critical Parts Destroyed 1 | . . . 1 Critical Strikes 1 | . . . 1 Smash 1 | . . . 1 Melee Attacks 52 | . . 22 30 Impact 19 | . . . 19 Slashing 33 | . . 22 11 Piercing . | . . . . Sneak Attacks 11 | . . 4 7 Combat Hostiles . | . . . . Follow-up Attacks 8 | . . 4 4 Damage Inflicted 1844 | . 391 489 964 Guns 483 | . 391 55 37 Cannons . | . . . . Explosions . | . . . . Melee 1361 | . . 434 927 Ramming . | . . . . Kinetic 357 | . 320 . 37 Thermal . | . . . . Explosive . | . . . . Electromagnetic 126 | . 71 55 . Impact 663 | . . . 663 Slashing 698 | . . 434 264 Piercing . | . . . . Highest Corruption 1 | . . 1 . Average Corruption 1 | . . 1 . Corruption Purged . | . . . . Corruption Blocked . | . . . . Overload Shots . | . . . . Overflow Damage 271 | . . 18 253 Projectiles . | . . . . Explosions . | . . . . Melee 271 | . . 18 253 Knockbacks 1 | . . . 1 Impact 1 | . . . 1 Kinetic . | . . . . Secondary . | . . . . Self-Inflicted Damage . | . . . . Shots . | . . . . Rammed . | . . . . Targets Rammed . | . . . . Kicked . | . . . . Crushed . | . . . . Highest Temperature 35 | . 35 6 16 Average Temperature 10 | . 11 4 8 Received Heat Transfer 1134 | . 210 249 675 Siege Activations . | . . . . Robots Corrupted 2 | . . . 2 Combat Hostiles 1 | . . . 1 Parts Fried 3 | . 1 . 2 Impact Corruptions 7 | . . . 7 Robots Melted . | . . . . Combat Hostiles . | . . . . Parts Melted . | . . . . Heat Transferred . | . . . . Parts Sabotaged . | . . . . Parts Stolen . | . . . . Parts Stripped . | . . . . Power Chain Reactions . | . . . . Alert | -11 -10 -9 -8 ------- Run | Yrd Mat Mat Mat Peak Influence 318 | . 197 318 143 Initial 74 | . . 74 49 Average 104 | . 71 195 62 Maximum Alert Level 1 | . . 1 . Low Security (%) 84 | 100 100 49 100 Level 1 15 | . . 50 . Level 2 . | . . . . Level 3 . | . . . . Level 4 . | . . . . Level 5 . | . . . . High Security . | . . . . Max Security . | . . . . Squads Dispatched 4 | . 1 3 . Investigation 2 | . 1 1 . Extermination . | . . . . Reinforcement 2 | . . 2 . Assault . | . . . . Garrison . | . . . . Intercept . | . . . . Searches Triggered . | . . . . Construction Impeded . | . . . . Haulers Reinforced . | . . . . Active Scanning Responses . | . . . . Cargo Convoy Interrupts . | . . . . Stealth | -11 -10 -9 -8 --------- Run | Yrd Mat Mat Mat Distress Signals 2 | . 1 . 1 Communications Jammed . | . . . . Distress Signals . | . . . . Times Spotted 36 | . 12 10 14 Peak Tracking Total 8 | . 5 4 8 Tactical Retreats 1 | . . 1 . Traps | -11 -10 -9 -8 ------- Run | Yrd Mat Mat Mat Traps Triggered 2 | . 1 1 . Indirectly . | . . . . Trap Hack Attempts . | . . . . Triggered . | . . . . Disarmed . | . . . . Reprogrammed . | . . . . Reused . | . . . . Traps Extracted . | . . . . Installed . | . . . . Triggered . | . . . . Machines | -11 -10 -9 -8 ---------- Run | Yrd Mat Mat Mat Machines Disabled 1 | . 1 . . Max in Single Turn 1 | . 1 . . Machines Repaired . | . . . . Machines Dismantled . | . . . . Machines Sabotaged . | . . . . Overloaded Fab Kills . | . . . . Hacking | -11 -10 -9 -8 --------- Run | Yrd Mat Mat Mat Machines Accessed 7 | . 6 1 . Terminals 5 | . 5 . . Fabricators . | . . . . Repair Stations . | . . . . Recycling Units 2 | . 1 1 . Scanalyzers . | . . . . Garrison Access . | . . . . Total Hacks 21 | . 19 2 . Successful 13 | . 11 2 . Failed 8 | . 8 . . Catastrophic . | . . . . Database Lockouts . | . . . . Manual . | . . . . Terminals 18 | . 18 . . Fabricators . | . . . . Repair Stations . | . . . . Recycling Units 3 | . 1 2 . Scanalyzers . | . . . . Garrison Access . | . . . . Terminal Hacks 10 | . 10 . . Record 6 | . 6 . . Robot Analysis 1 | . 1 . . Prototype ID Bank 2 | . 2 . . Locate Traps 1 | . 1 . . Fabricator Hacks . | . . . . Repair Station Hacks . | . . . . Recycling Unit Hacks 3 | . 1 2 . Process 1 | . . 1 . Report Inventory 1 | . 1 . . Retrieve Matter 1 | . . 1 . Scanalyzer . | . . . . Garrison Access Hacks . | . . . . Unauthorized Hacks . | . . . . Terminals . | . . . . Fabricators . | . . . . Repair Stations . | . . . . Recycling Units . | . . . . Scanalyzers . | . . . . Garrison Access . | . . . . Data Cores Recovered 1 | . 1 . . Used . | . . . . Hacking Detections 5 | . 5 . . Full Trace Events 2 | . 2 . . Feedback Events . | . . . . Feedback Blocked . | . . . . Robot Schematics Acquired . | . . . . Robots Built . | . . . . Authchips . | . . . . Time . | . . . . Total Robot Build Rating . | . . . . Part Schematics Acquired . | . . . . Parts Built . | . . . . Authchips . | . . . . Time . | . . . . Total Part Build Rating . | . . . . Parts Repaired . | . . . . Time . | . . . . Parts Recycled . | . . . . Recycled Matter 121 | . . 121 . Retrieved Matter 121 | . . 121 . Retrieved Components . | . . . . Parts Scanalyzed . | . . . . Part Schematics Acquired . | . . . . Parts Damaged . | . . . . Bothacking | -11 -10 -9 -8 ------------ Run | Yrd Mat Mat Mat Used RIF Installer . | . . . . Robots Hacked . | . . . . Non-combat . | . . . . Combat . | . . . . Robot Hacks Applied . | . . . . Relay Couplers Released . | . . . . Fabnet Peak Effective % . | . . . . Robots Rewired . | . . . . Allies Hacked . | . . . . Hacks Repelled . | . . . . Allies | -11 -10 -9 -8 -------- Run | Yrd Mat Mat Mat Total Allies . | . . . . Largest Group . | . . . . Highest-Rated Group . | . . . . Highest-Rated Ally . | . . . . Total Orders . | . . . . Ally Attacks . | . . . . Total Damage . | . . . . Kills . | . . . . Allies Corrupted . | . . . . Allies Melted . | . . . . Intel | -11 -10 -9 -8 ------- Run | Yrd Mat Mat Mat Robot Analysis Total 1 | . 1 . . Derelict Logs Recovered . | . . . . Drone Launches . | . . . . Drone Recoveries . | . . . . Exploration | -11 -10 -9 -8 ------------- Run | Yrd Mat Mat Mat Turns Passed 1319 | 45 341 414 519 Spaces Moved 618 | 33 241 182 162 Core 6 | 2 . . 4 Treads 268 | . . 110 158 Legs 38 | . . 38 . Wheels 306 | 31 241 34 . Hover . | . . . . Flight . | . . . . Fastest Speed 50 | 50 90 95 160 Average Speed 160 | 96 98 171 252 Slowest Speed 1000 | 100 100 260 1000 Overloaded Moves . | . . . . Propulsion Burnouts . | . . . . Robots Hopped . | . . . . Cave-ins Triggered . | . . . . Exploration Rate (%) 23 | 4 51 21 16 Regions Visited 3 Branch Regions . Pre-discovered Areas . | . . . . Known Exits Taken . | . . . . Unknown Exits Taken 3 | 1 1 1 . Scrap Searched . | . . . . Spaces Dug . | . . . . Terrain Destroyed . | . . . . Melee . | . . . . Projectile . | . . . . AOE . | . . . . Terrain Rammed . | . . . . Walls Destroyed . | . . . . Machines Disabled . | . . . . Actions | -11 -10 -9 -8 --------- Run | Yrd Mat Mat Mat Total 790 | 43 290 238 219 Wait 20 | . 5 13 2 Move 615 | 32 240 181 162 Hop . | . . . . Pick Up 21 | 3 4 7 7 Fast Attach 12 | 5 2 3 2 Attach 10 | 2 3 2 3 Detach 2 | 1 1 . . Swap 18 | . 1 10 7 Drop 8 | . 2 1 5 Fire 41 | . 32 4 5 Melee 43 | . . 17 26 Ram . | . . . . Kick . | . . . . Crush . | . . . . Escape Stasis . | . . . . Rewire . | . . . . Trap . | . . . . Miscellaneous . | . . . . Route ------- -11/Scrapyard -10/Materials -9/Materials -8/Materials History --------- Turn | Location | Event 13 | -11/Scrapyard | Discovered new exit (range 15) 46 | -11/Scrapyard | Entered Materials 334 | -10/Materials | Lost 3 parts (1p1n1w) 341 | -10/Materials | Discovered new exit (range 12) 344 | -10/Materials | Build established: Mutant 387 | -10/Materials | Entered another Materials area 387 | -9/Materials | Evolved 2 slots: Utility x1, Weapon x1 764 | -9/Materials | Discovered new exit (range 16) 801 | -9/Materials | Entered another Materials area 801 | -8/Materials | Evolved 2 slots: Power x1, Propulsion x1 1098 | -8/Materials | Lost 3 parts (2n1u) 1290 | -8/Materials | Core integrity fell below 50% 1305 | -8/Materials | Lost 3 parts (1p1n1w) 1314 | -8/Materials | Core integrity fell below 20% 1320 | -8/Materials | Destroyed by G-47 Trooper with Particle Gun Last Messages --------------- 01183_ Hvy. Mace follow-up attack on H-55 Commando. 01183_ Targeting Computer fried. 01183_ H-55 Commando destroyed. 01184_ U-05 Engineer builds a Door. 01187_ K-01 Serf collects debris. 01259_ Critical hit (Burn: +37). 01271_ Lgt. Nuclear Core destroyed. 01273_ Minigun destroyed. 01274_ Lgt. Treads destroyed. 01283_ Critical hit (Burn: +37). 01297_ Hvy. Mace follow-up attack on G-47 Trooper. 01297_ G-47 Trooper destroyed. 01298_ K-01 Serf collects debris. 01310_ Sneak attack on K-01 Serf. 01310_ Destroyed Med. Matter Pod. 01310_ K-01 Serf system corrupted by crushing effect. 01310_ K-01 Serf collects debris. Map ----- +----------------------------------------------------+ | ?????????????????????????????????????????????????? | | ?????????????????????????????????????????????????? | | ?????????????????????????????????????????????????? | | ?????????????????????????????????????????????????? | | ?????????????????????????????????????????????????? | | ?????????????????????????????????????????????????? | | ????????????????????????H????????????????????????? | | ?????????????????????????????????????????????????? | | ?????????????????????????????????????????????????? | | ?????????????????????????????????????????????????? | | ?????????????????????????? ??????????????????????? | | ?????????????????????????? ??????????????????????? | | ?????????????????????????? ??????????????????????? | | ?????????????????????????? ??????????????????????? | | ?????????????????????#???? ??????????????????????? | | ???????????????????? #??"" ??????????????????????? | | ??????????#####?##?? #??"" ??????????????????????? | | ??????????# ?? ? #??"" ??????????????????????? | | ??????????# ??? +?? ??????????????????????? | | ??????????# ???? #??#+#??????????????????????? | | ??????????+ #????# #??# #??????????????????????? | | ??????????# ######+####k#??????????????????????? | | ??????????# # # #??????????????????????? | | ??????????# # #u#??????????????????????? | | ??????????#^^ # """ #g###????????????????????? | | ??????????# # """ #@ #????????????????????? | | ??????????# # """!g% #????????????????????? | | ??????????+ + "" a #gg + #?????????????? | | ??????????# # S"" # g # """ #?????????????? | | ??????????# # "" #k #??"" ???????????????? | | ??????????# ########### #????????????????????? | | ???######## %#?????????# #????????????????????? | | ???# [ # #?????????# #????????????????????? | | ##?#!!! # #?????????# #????????????????????? | | #?#!!! + + ????????# #????????????????????? | | #?#!! # # ???????# #????????????????????? | | #?# | # % # ??????? #????????????????????? | | #?# #%= ########??? #????????????????????? | | #?########%//# #??? #????????????????????? | | ##########* %# ! #??? #????????????????????? | | #% # # """#??? #????????????????????? | | +[ """ + [+ """#??? #????????????????????? | | # ! "T" # # """#??? ?????????????????????? | | ## % # # #???????????????????????????? | | ########### ########???????????????????????????? | | #??????????????????????????????????? | | #??????????????????????????????????? | | #??????????????????????????????????? | | #########T#####??????????????????????????????????? | | ####????##???????????????????????????????????????? | +----------------------------------------------------+ Best States ------------- Heat Dissipation 31 Energy Generation 23 Energy Capacity 280 Matter Stores 450 Matter Capacity 450 Sight Range 16 Terrain Scan Density 10 Armor Coverage 150 Evasion (%) 42 Recoil Reduction 3 Item Schematics ----------------- None Robot Schematics ------------------ None Fabricated ------------ Nothing Alien Tech Used ----------------- None Achievements -------------- None Challenges ------------ None Game ------ Seed VampiricAlloyCloak Manual? 0 Play Time 00:16:17 Cumulative 14.8 hours Start 2024.08.12 @ 03:34:33 End 2024.08.12 @ 03:47:00 Sessions 1 Manual Loads 0 Difficulty Rogue Special Mode None Game No. 56 Rogue 54 Adventurer 0 Explorer 2 Win Type - Total 0 Types 0/0/0/0/0/0/0/0/0 Lore% 6 Gallery% 22 Achievement% 16 Wizard Run 0 Options --------- Layout 1 ASCII 0 Keyboard 1 Movement Numpad Keybinds 0 Fullscreen 1 Font 32/SmallcapsGlow Map View 50x35 Zoom Use 0% Tactical HUD 1 Map Filters NONE Filters NONE Steam 1 RUN: 55b0972b-5c4a-4a32-ac10-caee85d74034